fUST/lending_fUST_20250613
["ID","MTS","AMOUNT","RATE_DAILY","PERIOD"]
[365586144,1749795046625,-514.61024706,0.0002219,4]
[365586146,1749795046635,-537.3,0.00022191,2]
[365586148,1749795046645,-2526.85842396,0.0002221,6]
[365586150,1749795046654,-2441.31165224,0.00022314,7]
[365586158,1749795046716,-85.54677172,0.00022314,7]
[365586160,1749795046726,-609.7,0.00022347,4]
[365586162,1749795046735,-586.04,0.00022347,4]
[365586164,1749795046745,-460.0,0.00022347,4]
[365586166,1749795046755,-460.0,0.00022347,4]
[365586168,1749795046764,-460.0,0.00022347,4]
[365586170,1749795046774,-2526.85842396,0.00022417,7]
[365586172,1749795046783,-667.13,0.00022446,4]
[365586174,1749795046792,-460.0,0.00022446,4]
[365586176,1749795046802,-460.0,0.00022446,4]
[365586178,1749795046811,-389.63537497,0.00022446,4]
[365586180,1749795046821,-460.0,0.00022446,4]
[365586182,1749795046830,-498.39,0.00022446,4]
[365586184,1749795046839,-452.2646036,0.00022447,4]
[365586186,1749795046848,-546.07,0.00022447,4]
[365586188,1749795046858,-460.0,0.00022464,4]
[365586190,1749795046867,-460.0,0.00022464,4]
[365586192,1749795046876,-460.0,0.00022464,4]
[365586194,1749795046885,-104.0521681,0.00022464,4]
[365586196,1749795046897,-493.5078319,0.00022464,4]
[365586198,1749795046906,-537.3,0.00022465,2]
[365586200,1749795046916,-2440.23431018,0.00022473,2]
[365586202,1749795046925,-255.5250807,0.00022483,2]
[365586204,1749795046935,-1000.0,0.000225,6]
[365586206,1749795046944,-1000.0,0.000225,7]
[365586208,1749795046956,-2526.85842396,0.00022521,7]
[365586210,1749795046965,-1760.12789081,0.00022526,2]
[365587799,1749795124321,-3999.0,0.0002,2]
[365587813,1749795812237,261.504042,0.00013699,2]
[365587814,1749795814861,255.18,0.00018,2]
[365587816,1749795855611,-172.004432,0.00019828,2]
[365587817,1749795855636,-261.504042,0.00020187,2]
[365587830,1749796038131,-209.77085485,0.00020383,2]
[365587831,1749796038154,-1583.9,0.00020518,2]
[365587832,1749796038175,-500.0,0.00020593,2]
[365587833,1749796038198,-577.31986353,0.00020758,2]
[365588889,1749796070635,5135.99479525,0.00018,2]
[365589637,1749796160119,-1577.2,0.00020506,2]
[365589638,1749796160141,-368.29973454,0.00020593,2]
[365589639,1749796162091,-131.70026546,0.00020593,2]
[365589640,1749796162112,-622.68013647,0.00020758,2]
[365589641,1749796162133,-300.0,0.00020759,2]
[365589642,1749796162154,-300.0,0.00020759,2]
[365589643,1749796162175,-271.693,0.0002076,2]
[365589644,1749796162195,-342.0421259,0.0002076,2]
[365589645,1749796162216,-6778.23895883,0.0002076,2]
[365589646,1749796166123,-18121.76104117,0.0002076,2]
[365589647,1749796166145,-178.90431822,0.0002076,2]
[365589648,1749796166168,-224.76518075,0.00020995,2]
[365589649,1749796166189,-452.2646036,0.00021095,4]
[365589650,1749796166211,-432.28154428,0.00021095,4]
[365589651,1749796166236,-460.0,0.00021095,4]
[365589652,1749796166261,-460.0,0.00021095,4]
[365589653,1749796166286,-609.7,0.00021095,4]
[365589654,1749796166311,-460.0,0.00021095,4]
[365589655,1749796166339,-460.0,0.00021095,4]
[365589656,1749796166362,-611.54,0.00021095,4]
[365589657,1749796166388,-460.0,0.00021095,4]
[365589658,1749796166415,-460.0,0.00021095,4]
[365589659,1749796166440,-460.0,0.00021095,4]
[365589660,1749796166462,-389.63537497,0.00021095,4]
[365589661,1749796166483,-460.0,0.00021095,4]
[365589662,1749796166509,-528.66,0.00021095,4]
[365589663,1749796166532,-440.0,0.00021095,4]
[365589664,1749796166555,-483.6561122,0.00021095,4]
[365589665,1749796166578,-460.0,0.00021095,4]
[365589666,1749796166602,-493.45,0.00021095,4]
[365589667,1749796166623,-254.447171,0.00021224,2]
[365589668,1749796166648,-460.0,0.00021369,4]
[365589669,1749796166671,-460.0,0.00021369,4]
[365589670,1749796166694,-460.0,0.00021369,4]
[365589671,1749796166716,-611.54,0.00021369,4]
[365589672,1749796166740,-460.0,0.00021369,4]
[365589673,1749796166764,-460.0,0.00021369,4]
[365589674,1749796166788,-460.0,0.00021369,4]
[365589675,1749796166810,-460.0,0.00021369,4]
[365589676,1749796166834,-528.66,0.00021369,4]
[365589677,1749796166856,-2662.23669353,0.00021483,2]
[365589678,1749796172104,-492.15330647,0.00021483,2]
[365589679,1749796172128,-196.02044812,0.00021543,2]
[365589697,1749796232615,-312.06,0.0002047,2]
[365589701,1749796232735,-1204.92,0.0002047,2]
[365589702,1749796232744,-498.39,0.00021095,4]
[365589703,1749796232754,-460.0,0.00021095,4]
[365589704,1749796232763,-460.0,0.00021095,4]
[365589705,1749796232773,-460.0,0.00021095,4]
[365589706,1749796232783,-460.0,0.00021369,4]
[365589707,1749796232791,-460.0,0.00021369,4]
[365589708,1749796232801,-460.0,0.00021369,4]
[365589709,1749796232810,-550.17515673,0.00021444,2]
[365590310,1749796246531,-460.0,0.00021095,4]
[365590312,1749796246540,-460.0,0.00021369,4]
[365590314,1749796246550,-2483.77484327,0.00021444,2]
[365590316,1749796246558,-28.7447326,0.00021543,2]
[365590318,1749796246567,-300.0,0.00021642,2]
[365590320,1749796246576,-1200.0,0.00021642,2]
[365590322,1749796246585,-460.0,0.00021643,4]
[365590324,1749796246594,-207.76429141,0.00021643,4]
[365590627,1749796367303,-1468.92,0.0002049,2]
[365590628,1749796367352,-268.031088,0.00020692,2]
[365590629,1749796367408,-300.0,0.00021094,2]
[365590630,1749796367471,-460.0,0.00021095,4]
[365590631,1749796367520,-460.0,0.00021095,4]
[365590632,1749796367570,-460.0,0.00021095,4]
[365590633,1749796367619,-551.92,0.00021095,4]
[365590634,1749796367678,-379.84888959,0.00021095,4]
[365590635,1749796367728,-316.11002241,0.00021095,4]
[365590636,1749796367794,-172.33997759,0.00021095,4]
[365590637,1749796367846,-460.0,0.00021095,4]
[365590638,1749796367906,-460.0,0.00021095,4]
[365590639,1749796367965,-462.69,0.00021095,2]
[365590640,1749796368019,-460.0,0.00021095,4]
[365590641,1749796368070,-527.2,0.00021095,4]
[365590642,1749796368121,-503.77,0.00021095,4]
[365590643,1749796368172,-460.0,0.00021369,4]
[365590644,1749796368221,-460.0,0.00021369,4]
[365590645,1749796368271,-460.0,0.00021369,4]
[365590646,1749796368324,-238.83002241,0.00021369,4]
[365590647,1749796368384,-313.08997759,0.00021369,4]
[365590648,1749796368441,-460.0,0.00021369,4]
[365590649,1749796368495,-460.0,0.00021369,4]
[365590650,1749796368547,-462.69,0.00021369,2]
[365590651,1749796368730,-460.0,0.00021369,4]
[365590652,1749796368782,-527.2,0.00021369,4]
[365590653,1749796368838,-503.77,0.00021369,4]
[365590654,1749796368889,-1478.08002241,0.00021465,2]
[365590655,1749796368948,-1459.76997759,0.00021465,2]
[365590656,1749796368998,-300.0,0.00021642,2]
[365590657,1749796369053,-460.0,0.00021643,4]
[365590658,1749796369109,-460.0,0.00021643,4]
[365590659,1749796369159,-339.70880219,0.00021643,4]
[365590660,1749796369213,-460.0,0.00021643,4]
[365590661,1749796369266,-460.0,0.00021643,4]
[365590662,1749796369316,-551.92,0.00021643,4]
[365590663,1749796369364,-173.43122022,0.00021643,4]
[365590664,1749796370254,5017.77387142,0.0002,2]
[365590665,1749796370306,3888.22612858,0.0002,2]
[365590666,1749796504586,265.79943198,0.00019365,2]
[365590668,1749796599873,2333.0,0.00024658,120]
[365590670,1749796689832,154.03,0.0002,2]
[365590672,1749796805801,177.19962132,0.00019383,2]
[365590674,1749796948432,257.598891,0.00013699,2]
[365590676,1749796955209,406.9423503,0.0002,2]
[365590679,1749797103642,2231.83971355,0.00024657,120]
[365590680,1749797160969,217.291106,0.00019981,2]
[365590694,1749797202196,-234.41163016,0.00020004,2]
[365590695,1749797202217,-225.58836984,0.00020187,2]
[365590696,1749797207679,-32.01052116,0.00020187,2]
[365590697,1749797207707,-500.0,0.00020593,2]
[365590698,1749797207734,-300.0,0.00020622,2]
[365590699,1749797207761,-300.0,0.00020622,2]
[365590700,1749797207786,-300.0,0.00020623,2]
[365590701,1749797207810,-300.0,0.00020623,2]
[365590702,1749797207837,-429.55447884,0.00020623,2]
[365590703,1749797207868,-770.44552116,0.00020623,2]
[365590704,1749797207895,-1391.11947884,0.00020625,2]
[365590705,1749797297666,-1463.49,0.00020564,2]
[365590706,1749797297696,-300.0,0.00020624,2]
[365590707,1749797297724,-3290.984,0.00020625,2]
[365590708,1749797297862,-5054.474,0.00020625,2]
[365590709,1749797297911,-5054.474,0.00020625,2]
[365590710,1749797298095,-5054.474,0.00020625,2]
[365590711,1749797298263,-5054.474,0.00020625,2]
[365590714,1749797360088,-1444.86,0.00020546,2]
[365590715,1749797360113,-212.5062,0.00020593,2]
[365590717,1749797370115,-287.4938,0.00020593,2]
[365590718,1749797370137,-0.00052116,0.00020625,2]
[365590719,1749797370158,-184.210873,0.00020723,2]
[365590720,1749797370179,-251.098,0.00020723,2]
[365590721,1749797370200,-300.0,0.00020743,2]
[365590722,1749797370222,-317.03785294,0.000209,2]
[365590723,1749797370243,-268.0310896,0.00020915,2]
[365590724,1749797370263,-10314.12174214,0.00021,2]
[365590725,1749797373261,-4023.94327716,0.00021,2]
[365590726,1749797373284,-445.78461857,0.00021095,4]
[365590727,1749797373306,-430.0,0.00021095,4]
[365590728,1749797373328,-296.63768542,0.00021095,4]
[365590729,1749797373351,-276.76876526,0.00021095,4]
[365590730,1749797373377,-447.7766824,0.00021095,4]
[365590731,1749797373400,-448.06796325,0.00021095,4]
[365590732,1749797373425,-578.07302807,0.00021095,4]
[365590733,1749797373446,-444.62755388,0.00021095,4]
[365590734,1749797373469,-460.0,0.00021095,2]
[365590735,1749797373491,-497.42120416,0.00021095,4]
[365590736,1749797373517,-460.0,0.00021095,4]
[365590737,1749797373544,-460.0,0.00021095,4]
[365590738,1749797373570,-460.0,0.00021095,4]
[365590739,1749797373595,-460.0,0.00021095,4]
[365590740,1749797373621,-460.0,0.00021095,4]
[365590741,1749797373644,-481.57076343,0.00021095,4]
[365590742,1749797373667,-395.8600513,0.00021095,4]
[365590743,1749797373689,-400.14720737,0.00021095,4]
[365590744,1749797373721,-460.0,0.00021095,4]
[365590745,1749797373746,-460.0,0.00021095,4]
[365590746,1749797373771,-537.96,0.00021095,4]
[365590747,1749797373794,-395.95056222,0.00021095,4]
[365590748,1749797373818,-460.0,0.00021095,4]
[365590749,1749797373845,-460.0,0.00021095,4]
[365590750,1749797373873,-460.0,0.00021095,4]
[365590751,1749797373897,-460.0,0.00021095,4]
[365590752,1749797373920,-460.0,0.00021095,4]
[365590753,1749797373942,-460.0,0.00021095,4]
[365590754,1749797373965,-460.0,0.00021095,4]
[365590755,1749797373987,-460.0,0.00021095,4]
[365590756,1749797374010,-329.9306565,0.00021095,4]
[365590757,1749797374034,-460.0,0.00021095,4]
[365590758,1749797374058,-504.18,0.00021095,4]
[365590759,1749797374081,-460.0,0.00021095,4]
[365590760,1749797374104,-460.0,0.00021369,2]
[365590761,1749797374130,-460.0,0.00021369,4]
[365590762,1749797374153,-460.0,0.00021369,4]
[365590763,1749797374177,-460.0,0.00021369,4]
[365590764,1749797374202,-460.0,0.00021369,4]
[365590765,1749797374224,-556.55975466,0.00021369,4]
[365590766,1749797374247,-460.0,0.00021369,4]
[365590767,1749797374268,-537.96,0.00021369,4]
[365590768,1749797374291,-460.0,0.00021369,4]
[365590769,1749797374313,-187.43201471,0.00021369,4]
[365590770,1749797374334,-460.0,0.00021369,4]
[365590771,1749797374359,-504.18,0.00021369,4]
[365590772,1749797374385,-317.03785289,0.00021462,2]
[365590773,1749797374409,-1418.2842485,0.00021525,2]
[365590777,1749797397185,-160.0,0.00020546,2]
[365590778,1749797408497,231.78025372,0.00019269,2]
[365590779,1749797408645,248.9058569,0.00020584,2]
[365590831,1749797432883,-1437.62,0.00020642,2]
[365590833,1749797432893,-1200.0,0.00021094,2]
[365590835,1749797432903,-460.0,0.00021095,4]
[365590837,1749797432914,-460.0,0.00021095,4]
[365590839,1749797432924,-460.0,0.00021095,4]
[365590841,1749797432933,-460.0,0.00021095,4]
[365590843,1749797432943,-460.0,0.00021095,4]
[365590845,1749797432952,-460.0,0.00021095,4]
[365590847,1749797432962,-528.26,0.00021369,4]
[365590849,1749797432971,-460.0,0.00021369,4]
[365590851,1749797432981,-460.0,0.00021369,4]
[365590853,1749797432990,-460.0,0.00021369,4]
[365590855,1749797432999,-460.0,0.00021369,4]
[365590857,1749797433009,-155.0,0.00021525,2]
[365590859,1749797433019,-300.0,0.0002154,2]
[365590861,1749797433030,-2131.41497895,0.00021541,2]
[365590864,1749797433040,-2875.24,0.00021624,2]
[365590866,1749797433051,-2994.79,0.00021631,10]
[365590868,1749797433061,-2495.66,0.00021631,10]
[365590870,1749797433071,-2227.33,0.00021631,10]
[365590872,1749797433081,-166.6454123,0.0002164,2]
[365590874,1749797433092,-425.60333498,0.0002164,4]
[365590876,1749797433102,-8233.25325488,0.0002164,2]
[365591200,1749797438901,-460.0,0.00021095,4]
[365591201,1749797438911,-460.0,0.00021095,4]
[365591202,1749797438921,-460.0,0.00021369,4]
[365591203,1749797438931,-460.0,0.00021369,4]
[365591204,1749797438940,-200.32972184,0.0002164,2]
[365591205,1749797438950,-500.0,0.0002164,2]
[365591206,1749797438960,-500.0,0.0002164,2]
[365591208,1749797438969,-500.0,0.0002164,2]
[365591209,1749797438978,-500.0,0.0002164,2]
[365591212,1749797438987,-500.0,0.0002164,2]
[365591213,1749797438996,-500.0,0.0002164,2]
[365591215,1749797439006,-500.0,0.0002164,2]
[365591218,1749797439015,-296.57568769,0.0002164,2]
[365591220,1749797439025,-613.3877467,0.0002164,2]
[365591222,1749797439035,-500.0,0.0002164,2]
[365591224,1749797439044,-1981.57169973,0.0002164,2]
[365591226,1749797439054,-444.4792709,0.0002164,2]
[365591228,1749797439064,-603.16811693,0.0002164,2]
[365591230,1749797439074,-500.0,0.0002164,2]
[365591231,1749797439083,-500.0,0.0002164,2]
[365591234,1749797439093,-500.0,0.0002164,2]
[365591235,1749797439103,-500.0,0.0002164,2]
[365591237,1749797439112,-500.0,0.0002164,2]
[365591240,1749797439122,-500.0,0.0002164,2]
[365591241,1749797439131,-500.0,0.0002164,2]
[365591244,1749797439141,-1981.57169973,0.0002164,2]
[365591246,1749797439151,-498.2232141,0.0002164,2]
[365591248,1749797439161,-500.0,0.0002164,2]
[365591250,1749797439171,-392.98934803,0.0002164,2]
[365591251,1749797439180,-500.0,0.0002164,2]
[365591254,1749797439190,-605.00381457,0.0002164,2]
[365591256,1749797439200,-503.46257878,0.0002164,2]
[365591258,1749797439209,-500.0,0.0002164,2]
[365591259,1749797439218,-500.0,0.0002164,2]
[365591262,1749797439228,-1981.57169973,0.0002164,2]
[365591263,1749797439237,-500.0,0.0002164,2]
[365591266,1749797439247,-500.0,0.0002164,2]
[365591268,1749797439257,-500.0,0.0002164,2]
[365591270,1749797439267,-1981.57169973,0.0002164,2]
[365591271,1749797439276,-500.0,0.0002164,2]
[365591273,1749797439285,-500.0,0.0002164,2]
[365591275,1749797439295,-629.55343947,0.0002164,2]
[365591277,1749797439304,-1981.57169973,0.0002164,2]
[365591279,1749797439314,-500.0,0.0002164,2]
[365591282,1749797439323,-500.0,0.0002164,2]
[365591284,1749797439334,-1981.57169973,0.0002164,2]
[365591285,1749797439344,-500.0,0.0002164,2]
[365591287,1749797439353,-1981.57169973,0.0002164,2]
[365591289,1749797439363,-1981.57169973,0.0002164,2]
[365591291,1749797439372,-500.0,0.0002164,2]
[365591293,1749797439381,-1981.57169973,0.0002164,2]
[365591295,1749797439390,-500.0,0.0002164,2]
[365591297,1749797439399,-1981.57169973,0.0002164,2]
[365591299,1749797439408,-1981.57169973,0.0002164,2]
[365591301,1749797439418,-1981.57169973,0.0002164,2]
[365591303,1749797439428,-1981.57169973,0.0002164,2]
[365591305,1749797439438,-1981.57169973,0.0002164,2]
[365591307,1749797439447,-1981.57169973,0.0002164,2]
[365591309,1749797439458,-1981.57169973,0.0002164,2]
[365591311,1749797439467,-1981.57169973,0.0002164,2]
[365591313,1749797439477,-1981.57169973,0.0002164,2]
[365591315,1749797439487,-1981.57169973,0.0002164,2]
[365591317,1749797439496,-1981.57169973,0.0002164,2]
[365591319,1749797439505,-1981.57169973,0.0002164,2]
[365591321,1749797439515,-1981.57169973,0.0002164,2]
[365591323,1749797439525,-500.0,0.0002164,2]
[365591325,1749797439534,-1981.57169973,0.0002164,2]
[365591327,1749797439544,-1981.57169973,0.0002164,2]
[365591329,1749797439554,-1981.57169973,0.0002164,2]
[365591331,1749797439564,-1981.57169973,0.0002164,2]
[365591333,1749797439573,-1981.57169973,0.0002164,2]
[365591335,1749797439582,-1981.57169973,0.0002164,2]
[365591337,1749797439592,-1981.57169973,0.0002164,2]
[365591339,1749797439601,-1981.57169973,0.0002164,2]
[365591341,1749797439611,-1981.57169973,0.0002164,2]
[365591343,1749797439620,-1981.57169973,0.0002164,2]
[365591345,1749797439629,-1981.57169973,0.0002164,2]
[365591347,1749797439638,-1981.57169973,0.0002164,2]
[365591349,1749797439647,-1981.57169973,0.0002164,2]
[365591351,1749797439657,-1981.57169973,0.0002164,2]
[365591353,1749797439667,-1981.57169973,0.0002164,2]
[365591355,1749797439676,-1981.57169973,0.0002164,2]
[365591357,1749797439686,-8025.94776786,0.0002164,2]
[365591359,1749797439695,-25365.70704422,0.0002164,2]
[365591361,1749797439704,-17986.60125568,0.00021641,2]
[365591363,1749797439714,-151.0,0.00021642,2]
[365591365,1749797439723,-151.0,0.00021642,2]
[365591367,1749797439739,-151.0,0.00021642,2]
[365591369,1749797439749,-151.0,0.00021642,2]
[365591371,1749797439758,-151.0,0.00021642,2]
[365591373,1749797439767,-151.0,0.00021642,2]
[365591375,1749797439777,-460.0,0.00021643,2]
[365591377,1749797439787,-460.0,0.00021643,4]
[365591379,1749797439797,-460.0,0.00021643,4]
[365591381,1749797439806,-537.96,0.00021643,4]
[365591383,1749797439816,-460.0,0.00021643,4]
[365591385,1749797439826,-460.0,0.00021643,4]
[365591387,1749797439836,-504.18,0.00021643,4]
[365591389,1749797439845,-460.0,0.00021643,4]
[365591391,1749797439856,-360.0,0.00021643,4]
[365591393,1749797439865,-460.0,0.00021643,4]
[365591395,1749797439875,-460.0,0.00021643,4]
[365591397,1749797439884,-460.0,0.00021643,4]
[365591399,1749797439893,-460.0,0.00021643,4]
[365591401,1749797439902,-500.0,0.00021689,2]
[365591403,1749797439912,-224.060465,0.00021732,2]
[365591405,1749797439922,-168.0,0.00021767,2]
[365591407,1749797439931,-207.4,0.00021806,2]
[365591409,1749797439941,-2131.41497895,0.00021816,2]
[365591411,1749797439950,-460.0,0.00021899,4]
[365591413,1749797439960,-460.0,0.00021899,4]
[365591415,1749797439970,-2471.69475641,0.000219,6]
[365591417,1749797439980,-500.0,0.00021917,2]
[365591419,1749797439990,-460.0,0.00021917,2]
[365591421,1749797439999,-460.0,0.00021917,4]
[365591423,1749797440008,-151.0,0.00021917,2]
[365591425,1749797440018,-460.0,0.00021917,4]
[365591428,1749797440028,-537.96,0.00021917,4]
[365591430,1749797440038,-460.0,0.00021917,4]
[365591432,1749797440047,-460.0,0.00021917,4]
[365591434,1749797440056,-504.18,0.00021917,4]
[365591436,1749797440066,-493.25116521,0.00021917,4]
[365591438,1749797440076,-460.0,0.00021917,4]
[365591440,1749797440086,-460.0,0.00021917,4]
[365591442,1749797440096,-460.0,0.00021917,4]
[365591444,1749797440105,-460.0,0.00021917,4]
[365591446,1749797440115,-2816.68661021,0.00021923,2]
[365591448,1749797440124,-264.46187697,0.00021945,3]
[365591450,1749797440134,-156.587,0.00021985,2]
[365591452,1749797440143,-151.35033182,0.00021985,2]
[365591454,1749797440153,-500.0,0.00021985,2]
[365591456,1749797440162,-500.0,0.00021985,2]
[365591458,1749797440172,-500.0,0.00021985,2]
[365591460,1749797440181,-5000.0,0.00021985,2]
[365591462,1749797440191,-500.0,0.00021985,2]
[365591463,1749797440200,-3239.87210919,0.00021985,2]
[365591465,1749797440209,-500.0,0.00021985,2]
[365591467,1749797440219,-500.0,0.00021985,2]
[365591469,1749797440229,-500.0,0.00021985,2]
[365591471,1749797440239,-500.0,0.00021985,2]
[365591473,1749797440249,-500.0,0.00021985,2]
[365591474,1749797440258,-500.0,0.00021985,2]
[365591476,1749797440268,-500.0,0.00021985,2]
[365591478,1749797440277,-500.0,0.00021985,2]
[365591480,1749797440287,-500.0,0.00021985,2]
[365591482,1749797440296,-500.0,0.00021985,2]
[365591484,1749797440305,-500.0,0.00021985,2]
[365591486,1749797440314,-500.0,0.00021985,2]
[365591488,1749797440325,-500.0,0.00021985,2]
[365591490,1749797440334,-500.0,0.00021985,2]
[365591492,1749797440343,-500.0,0.00021985,2]
[365591494,1749797440353,-500.0,0.00021985,2]
[365591496,1749797440362,-500.0,0.00021985,2]
[365591498,1749797440371,-500.0,0.00021985,2]
[365591500,1749797440381,-500.0,0.00021985,2]
[365591502,1749797440391,-500.0,0.00021985,2]
[365591504,1749797440400,-500.0,0.00021985,2]
[365591506,1749797440409,-358.20226359,0.00021985,2]
[365591508,1749797440420,-500.0,0.00021985,2]
[365591510,1749797440430,-281.99,0.00021988,3]
[365591512,1749797440439,-845.97,0.00021988,3]
[365591514,1749797440449,-563.97,0.00021989,3]
[365591516,1749797440459,-1127.95,0.0002199,3]
[365591518,1749797440468,-151.0,0.00021998,7]
[365591520,1749797440478,-151.0,0.00021998,7]
[365591522,1749797440488,-236.21179,0.00021998,7]
[365591524,1749797440498,-460.0,0.00021998,4]
[365591526,1749797440507,-460.0,0.00021998,4]
[365591528,1749797440517,-483.27,0.00021998,4]
[365591530,1749797440528,-3433.42002333,0.00022,2]
[365591532,1749797440538,-2471.69475632,0.00022003,6]
[365591534,1749797440547,-317.03785289,0.00022025,2]
[365591536,1749797440556,-195.08704723,0.0002204,2]
[365591538,1749797440566,-365.0707398,0.00022055,2]
[365591539,1749797440575,-2131.41497895,0.0002209,2]
[365591541,1749797440585,-2471.69475632,0.00022107,6]
[365591543,1749797440594,-151.919038,0.00022173,7]
[365591545,1749797440603,-153.217292,0.00022173,7]
[365591547,1749797440613,-151.0,0.00022173,7]
[365591549,1749797440623,-460.0,0.00022173,4]
[365591551,1749797440632,-214.768915,0.00022173,7]
[365591553,1749797440641,-214.768915,0.00022173,7]
[365591555,1749797440651,-460.0,0.00022191,2]
[365591557,1749797440660,-460.0,0.00022191,4]
[365591559,1749797440670,-460.0,0.00022191,4]
[365591561,1749797440680,-537.96,0.00022191,4]
[365591563,1749797440689,-460.0,0.00022191,4]
[365591565,1749797440698,-460.0,0.00022191,4]
[365591567,1749797440707,-504.18,0.00022191,4]
[365591569,1749797440717,-460.0,0.00022191,4]
[365591571,1749797440727,-460.0,0.00022191,4]
[365591573,1749797440738,-460.0,0.00022191,4]
[365591575,1749797440747,-460.0,0.00022191,4]
[365591577,1749797440756,-15446.85187723,0.00022202,2]
[365591579,1749797440765,-2471.69475632,0.0002221,6]
[365591581,1749797440774,-500.0,0.0002224,2]
[365591583,1749797440785,-2255.89,0.00022263,3]
[365591585,1749797440794,-460.0,0.00022272,4]
[365591587,1749797440803,-460.0,0.00022272,4]
[365591589,1749797440813,-483.27,0.00022272,4]
[365591591,1749797440822,-201.606997,0.00022273,7]
[365591592,1749797440832,-214.768915,0.00022273,7]
[365591594,1749797440842,-214.768915,0.00022273,7]
[365591597,1749797440851,-214.768915,0.00022273,7]
[365591599,1749797440861,-214.768915,0.00022273,7]
[365591601,1749797440870,-4511.78,0.00022295,3]
[365591602,1749797440880,-151.0,0.00022295,7]
[365591604,1749797440889,-151.0,0.00022305,7]
[365591607,1749797440899,-151.0,0.00022305,7]
[365591609,1749797440908,-151.0,0.00022305,7]
[365591610,1749797440919,-151.0,0.00022305,7]
[365591612,1749797440929,-151.0,0.00022305,7]
[365591614,1749797440938,-214.768915,0.00022305,7]
[365591617,1749797440949,-214.768915,0.00022305,7]
[365591619,1749797440958,-214.768915,0.00022305,7]
[365591621,1749797440968,-214.768915,0.00022305,7]
[365591623,1749797440977,-214.768915,0.00022305,7]
[365591625,1749797440987,-214.768915,0.00022305,7]
[365591626,1749797440996,-214.768915,0.00022305,7]
[365591629,1749797441006,-214.768915,0.00022305,7]
[365591631,1749797441015,-214.768915,0.00022305,7]
[365591633,1749797441024,-214.768915,0.00022305,7]
[365591634,1749797441035,-214.768915,0.00022305,7]
[365591637,1749797441044,-214.768915,0.00022305,7]
[365591638,1749797441053,-214.768915,0.00022305,7]
[365591640,1749797441063,-214.768909,0.00022305,7]
[365591643,1749797441072,-151.0,0.00022306,7]
[365591645,1749797441082,-151.0,0.00022306,7]
[365591647,1749797441091,-2471.69475632,0.00022314,7]
[365591649,1749797441100,-151.0,0.00022314,7]
[365591651,1749797441110,-151.0,0.00022314,7]
[365591653,1749797441119,-154.177358,0.00022316,7]
[365591655,1749797441128,-151.0,0.00022316,7]
[365591657,1749797441138,-151.0,0.00022316,7]
[365591659,1749797441147,-151.0,0.00022316,7]
[365591661,1749797441157,-151.0,0.00022316,7]
[365591663,1749797441168,-151.0,0.00022316,7]
[365591665,1749797441177,-151.0,0.00022316,7]
[365591667,1749797441187,-151.0,0.00022316,7]
[365591669,1749797441196,-250.60232476,0.00022321,2]
[365591671,1749797441206,-2131.41497895,0.00022365,2]
[365591673,1749797441215,-151.0,0.00022405,7]
[365591675,1749797441224,-151.0,0.00022405,7]
[365591677,1749797441233,-2497.937806,0.00022405,2]
[365591679,1749797441243,-2497.937806,0.00022405,2]
[365591681,1749797441252,-151.0,0.00022405,7]
[365591683,1749797441262,-151.0,0.00022405,7]
[365591685,1749797441271,-182.202556,0.00022405,7]